bitfinex/quotes_ETHUSD_20250517
["timestamp","ask_amount","ask_price","bid_price","bid_amount"]
[1747441037916,3.97745144,2514.2,2514.0,12.8253]
[1747441038597,3.97726359,2514.3,2514.0,12.8253]
[1747441038780,11.977,2514.7,2514.0,0.7993]
[1747441039116,3.97756652,2514.1,2514.0,0.7993]
[1747441039322,11.977,2514.7,2513.9,11.49198624]
[1747441039623,3.97725231,2514.3,2513.9,11.49198624]
[1747441039935,3.97667029,2514.7,2514.0,3.97772474]
[1747441040717,3.97749434,2514.2,2514.0,12.024]
[1747441040915,3.97743784,2514.2,2514.0,12.024]
[1747441041419,3.97714293,2514.4,2514.0,12.024]
[1747441041719,3.97725012,2514.3,2514.0,12.024]
[1747441041917,11.869,2514.8,2514.0,12.024]
[1747441042296,15.8455622,2514.8,2514.2,3.97731905]
[1747441042616,3.97663843,2514.7,2514.3,0.8364]
[1747441043024,3.97709195,2514.4,2514.3,0.8364]
[1747441043230,3.97751124,2514.2,2514.1,12.023]
[1747441043816,11.869,2514.8,2513.9,0.8364]
[1747441044145,3.97708533,2514.5,2513.9,0.8364]
[1747441044315,3.97661748,2514.7,2513.9,4.81425232]
[1747441044513,11.789,2515.2,2513.9,4.23842523]
[1747441044741,3.97615384,2515.0,2514.5,3.97684978]
[1747441044894,11.789,2515.2,2514.6,12.023]
[1747441044895,3.9760546,2515.1,2514.6,12.023]
[1747441045101,3.97621076,2515.0,2514.6,12.023]
[1747441046037,3.97686908,2514.6,2514.0,3.97759348]
[1747441046335,11.789,2515.2,2514.2,3.97735743]
[1747441046336,3.97633491,2514.9,2514.2,3.97735743]
[1747441046626,11.789,2515.2,2514.1,12.023]
[1747441046627,3.97682245,2514.6,2514.1,12.023]
[1747441046828,3.97668012,2514.7,2514.1,16.00056007]
[1747441047036,3.97681738,2514.6,2514.1,12.023]
[1747441047403,3.97661748,2514.7,2514.1,12.023]
[1747441048007,3.97661748,2514.7,2514.1,16.00051441]
[1747441048198,3.97617463,2515.0,2514.1,12.023]
[1747441048403,3.97649918,2514.8,2514.2,3.97731251]
[1747441048600,3.97598505,2515.1,2513.9,0.8364]
[1747441048829,3.97731226,2514.3,2514.0,11.707]
[1747441049037,3.97716046,2514.4,2514.0,11.707]
[1747441049537,3.97685984,2514.6,2514.1,11.707]
[1747441049735,3.9768935,2514.6,2514.1,11.707]
[1747441049940,3.97663503,2514.7,2514.2,3.9773776]
[1747441049941,3.97664903,2514.7,2514.2,3.9773776]
[1747441050143,3.97664903,2514.7,2514.1,15.68449572]
[1747441050450,3.97695444,2514.5,2513.9,0.8364]
[1747441050604,3.97695444,2514.5,2514.0,11.707]
[1747441050946,3.97695444,2514.5,2513.8,28.89]
[1747441050947,3.97779395,2514.0,2513.8,28.89]
[1747441051241,3.97743312,2514.2,2513.8,17.183]
[1747441051415,15.57380746,2514.6,2513.8,28.89]
[1747441051615,3.97752755,2514.2,2513.8,28.89]
[1747441052021,3.97760333,2514.1,2513.8,28.89]
[1747441052214,3.97765517,2514.1,2513.8,28.89]
[1747441052621,3.97760752,2514.1,2513.8,28.89]
[1747441052919,3.97747171,2514.2,2513.8,17.183]
[1747441053245,11.597,2514.6,2513.9,3.97779038]
[1747441053445,11.52,2515.0,2514.2,0.7802]
[1747441053748,15.49648675,2515.5,2514.9,3.97619053]
[1747441053913,3.97553725,2515.4,2514.9,15.68319053]
[1747441054114,3.97553725,2515.4,2514.9,11.707]
[1747441054535,3.97539021,2515.5,2514.9,11.707]
[1747441054733,11.501,2515.6,2515.0,0.7802]
[1747441054935,3.9763877,2514.9,2514.3,0.7802]
[1747441055114,3.9765695,2514.8,2514.4,11.707]
[1747441055520,3.97637262,2514.9,2514.4,11.707]
[1747441056250,3.97625065,2515.0,2514.4,3.97704932]
[1747441056406,3.97647457,2514.8,2514.3,4.7573823]
[1747441056606,3.97630124,2514.9,2514.3,12.4862]
[1747441056845,11.439,2514.9,2514.3,11.706]
[1747441057153,3.97700568,2514.5,2514.3,11.706]
[1747441057511,3.97681157,2514.6,2514.3,11.706]
[1747441058745,3.97681157,2514.6,2514.0,3.97769979]
[1747441058913,15.41542473,2514.9,2514.2,11.373]
[1747441059113,3.97652103,2514.8,2514.2,11.373]
[1747441059347,3.97661748,2514.7,2514.1,3.97749929]
[1747441059645,11.439,2514.9,2513.9,4.75804572]
[1747441059646,3.97700689,2514.5,2514.2,11.373]
[1747441059847,3.97682372,2514.6,2514.2,11.373]
[1747441059848,3.97688855,2514.6,2514.2,11.373]
[1747441060145,3.97667444,2514.7,2514.2,11.373]
[1747441060453,3.97681248,2514.6,2514.2,11.373]
[1747441060963,3.97645936,2514.8,2514.2,11.373]
[1747441061253,3.97668282,2514.7,2514.2,11.373]
[1747441061953,15.27449897,2514.8,2513.9,0.7802]
[1747441062155,3.97684324,2514.6,2513.9,0.7802]
[1747441062365,0.3589564,2514.7,2513.8,17.183]
[1747441062530,3.97788297,2513.9,2513.8,17.183]
[1747441063435,18.08,2514.7,2513.8,17.183]
[1747441063739,11.229,2514.6,2513.8,17.183]
[1747441064234,10.08,2515.1,2514.3,0.7674]
[1747441064435,11.212,2515.1,2514.6,3.97667125]
[1747441064747,11.212,2515.1,2514.3,12.1404]
[1747441064748,15.18805503,2515.1,2514.5,3.97691312]
[1747441065257,11.212,2515.1,2514.6,3.9767739]
[1747441065447,11.212,2515.1,2514.3,0.7674]
[1747441065762,11.212,2515.1,2513.9,0.7836]
[1747441066050,3.9773531,2514.3,2513.9,12.1566]
[1747441066644,3.97783878,2514.0,2513.7,11.373]
[1747441066845,3.97763742,2514.1,2513.7,11.373]
[1747441067050,3.97759685,2514.1,2513.7,11.373]
[1747441067214,11.16,2514.3,2513.5,12.1566]
[1747441067421,15.13728277,2514.3,2513.6,3.97825515]
[1747441067722,3.97740832,2514.2,2513.6,3.97825515]
[1747441067918,3.97740832,2514.2,2513.7,3.97819538]
[1747441068629,3.97769644,2514.1,2513.5,16.13503112]
[1747441068951,3.9774584,2514.2,2513.6,3.97835417]
[1747441069167,11.16,2514.3,2513.5,12.1566]
[1747441069372,11.16,2514.3,2513.7,3.97819946]
[1747441069536,11.16,2514.3,2514.2,3.97740832]
[1747441069733,14.05638324,2514.9,2514.3,3.97719993]
[1747441069942,11.094,2514.8,2514.6,3.97662448]
[1747441070242,15.06865643,2515.4,2514.7,15.35058292]
[1747441070560,11.093,2515.4,2514.7,15.35059963]
[1747441070756,11.093,2515.4,2514.7,11.374]
[1747441070959,3.97568848,2515.3,2514.7,11.374]
[1747441071172,3.97567061,2515.3,2514.7,15.35054376]
[1747441071345,11.093,2515.4,2514.3,3.97725012]
[1747441071346,3.97631164,2514.9,2514.3,3.97715491]
[1747441071552,11.093,2515.4,2514.7,11.054]
[1747441071848,3.97594392,2515.2,2514.7,11.054]
[1747441072730,3.97625381,2515.0,2514.6,11.053]
[1747441073135,3.97616734,2515.0,2514.6,11.053]
[1747441073389,11.046,2515.3,2514.2,11.8366]
[1747441073536,3.97633991,2514.9,2514.2,11.8366]
[1747441073877,3.976393,2514.9,2514.3,3.97715884]
[1747441074064,3.97630909,2514.9,2514.2,15.81400696]
[1747441074374,3.97620347,2515.0,2514.4,3.97699028]
[1747441074682,3.97655949,2514.8,2514.2,15.81395282]
[1747441074838,3.97634049,2514.9,2514.3,3.97722178]
[1747441075271,11.046,2515.3,2514.4,3.97705491]
[1747441075579,3.97582697,2515.2,2514.5,3.97684777]
[1747441075781,15.02174205,2515.3,2514.7,3.97648096]
[1747441075941,3.9758642,2515.2,2514.7,3.97648096]
[1747441076862,3.9758642,2515.2,2514.6,3.97673486]
[1747441077570,8.0,2515.7,2514.2,11.053]
[1747441077736,10.89,2515.6,2514.7,0.789]
[1747441077930,3.97558524,2515.4,2514.6,11.053]
[1747441078136,3.97558524,2515.4,2514.4,0.789]
[1747441078369,3.9766451,2514.7,2514.4,11.842]
[1747441078567,3.97653362,2514.8,2514.4,11.842]
[1747441078787,3.97688574,2514.6,2514.4,11.842]
[1747441078949,10.869,2514.9,2514.3,11.053]
[1747441079440,14.84537939,2514.9,2514.3,15.0302084]
[1747441080175,10.869,2514.9,2514.3,15.0302084]
[1747441080344,10.869,2514.9,2514.0,17.963]
[1747441080541,8.0,2514.8,2513.7,11.053]
[1747441080896,3.97770189,2514.1,2513.6,0.789]
[1747441081043,3.97770189,2514.1,2513.6,11.842]
[1747441081398,14.7925132,2514.2,2513.6,15.82031888]
[1747441081585,3.97848795,2513.6,2513.2,17.96]
[1747441081877,3.97826422,2513.7,2513.3,11.053]
[1747441082080,3.97772216,2514.1,2513.4,3.9786743]
[1747441082256,4.52643592,2514.9,2513.3,11.053]
[1747441082257,10.782,2514.0,2513.6,3.97824974]
[1747441082457,10.782,2514.1,2513.7,3.97806907]
[1747441082641,10.773,2514.1,2513.3,11.053]
[1747441082844,10.773,2514.1,2513.4,11.053]
[1747441083174,10.773,2514.1,2513.1,3.97912388]
[1747441083175,3.97864474,2513.5,2512.9,3.97945579]
[1747441083381,10.795,2513.5,2512.8,0.789]
[1747441083945,3.97877961,2513.4,2512.8,0.789]
[1747441084154,14.77352903,2513.5,2512.8,0.789]
[1747441084356,14.77352903,2513.5,2512.7,11.053]
[1747441084357,3.97934911,2513.0,2512.7,11.053]
[1747441084654,3.97948722,2512.9,2512.4,11.843]
[1747441084972,3.97883261,2513.3,2512.4,15.8232516]
[1747441085177,10.795,2513.5,2512.5,3.97997294]
[1747441085355,10.795,2513.5,2512.4,11.843]
[1747441085553,1.1033939,2513.9,2512.8,3.97958533]
[1747441085554,14.72878719,2513.4,2512.8,3.97958533]
[1747441085777,3.97884034,2513.3,2512.7,3.97972775]
[1747441086055,3.97945353,2513.0,2512.6,10.744]
[1747441086250,3.9793076,2513.0,2512.3,17.171]
[1747441086570,3.98007674,2512.6,2512.3,17.171]
[1747441086767,14.71507674,2512.6,2512.3,17.171]
[1747441086992,3.9800995,2512.5,2511.7,0.8292]
[1747441087170,10.735,2512.6,2511.3,17.176]
[1747441087171,10.735,2512.6,2511.5,10.745]
[1747441087492,3.9813672,2511.7,2510.8,0.8292]
[1747441087705,23.5529672,2511.7,2510.3,0.8292]
[1747441088050,24.1029672,2511.7,2510.3,0.8292]
[1747441088395,24.1029672,2511.7,2511.6,0.57342154]
[1747441088567,24.4599178,2511.7,2511.6,0.57342154]
[1747441089776,24.1029672,2511.7,2511.6,0.57342154]
[1747441090978,3.98305063,2510.7,2510.0,3.98402134]
[1747441091181,14.63973102,2510.9,2510.1,0.03983807]
[1747441091387,3.9837177,2510.3,2509.8,0.8292]
[1747441091613,0.8033,2510.1,2509.0,0.8316]
[1747441091770,14.73256313,2511.0,2508.8,17.183]
[1747441091771,0.8033,2510.6,2509.8,3.98432566]
[1747441092099,10.672,2510.9,2510.5,3.98313347]
[1747441092273,10.677,2511.4,2511.0,3.98240269]
[1747441092456,10.681,2511.9,2511.4,3.98172882]
[1747441092659,10.681,2511.9,2511.1,0.8316]
[1747441092863,10.688,2512.9,2511.9,4.8125133]
[1747441093064,3.98030308,2512.4,2511.9,0.8316]
[1747441093460,10.692,2512.4,2510.2,3.9836624]
[1747441093661,10.692,2512.4,2509.5,3.98485249]
[1747441093662,3.98103071,2512.0,2511.3,3.98197088]
[1747441094110,11.4953,2512.4,2510.9,3.9826357]
[1747441094295,3.98057479,2512.2,2511.1,3.98218449]
[1747441094495,3.98109866,2511.9,2511.2,3.98212347]
[1747441094684,10.694,2511.8,2510.9,7.17517275]
[1747441095003,10.687,2512.0,2510.9,3.19256357]
[1747441095301,10.687,2512.0,2511.4,3.98169921]
[1747441095503,3.98118566,2511.9,2511.2,3.98211352]
[1747441095884,3.98118566,2511.9,2511.2,3.9820137]
[1747441096302,14.6679178,2512.0,2511.4,3.98181033]
[1747441096470,3.98105262,2511.9,2511.3,10.754]
[1747441096870,10.687,2512.0,2511.3,10.754]
[1747441096871,14.66795044,2512.0,2511.3,10.754]
[1747441097512,10.687,2512.0,2510.9,0.8386]
[1747441097715,3.98162171,2511.6,2510.9,4.82122655]
[1747441097920,3.9810502,2511.9,2510.9,0.8386]
[1747441098120,3.98120869,2511.8,2510.9,0.8386]
[1747441098326,3.98233103,2511.1,2510.9,0.8386]
[1747441098544,0.8296,2511.8,2510.8,17.189]
[1747441098545,10.64,2511.3,2510.8,17.189]
[1747441098744,0.8296,2511.1,2510.1,0.8386]
[1747441098911,3.98312364,2510.6,2510.1,0.8386]
[1747441099223,10.9096,2511.1,2510.1,0.8386]
[1747441099224,14.61398786,2510.7,2510.1,0.8386]
[1747441099389,10.631,2510.7,2510.2,3.98373786]
[1747441099590,14.61397529,2510.7,2510.1,4.8224464]
[1747441099788,3.98314358,2510.6,2510.1,0.8386]
[1747441100018,10.631,2510.7,2510.1,0.8386]
[1747441100431,10.631,2510.7,2510.2,3.98361473]
[1747441100593,10.631,2510.7,2510.1,0.8386]
[1747441101127,10.631,2510.7,2510.2,3.98374631]
[1747441101307,10.577,2510.7,2510.1,0.8386]
[1747441101698,14.56004726,2510.7,2510.1,4.82249713]
[1747441101904,10.577,2510.7,2509.6,18.0296]
[1747441102102,10.577,2510.7,2509.7,10.757]
[1747441102431,3.98256704,2511.0,2510.4,3.98331132]
[1747441102631,3.9826357,2510.9,2510.3,14.74057565]
[1747441102935,10.568,2511.0,2510.3,10.757]
[1747441103094,10.568,2511.0,2509.7,3.98453998]
[1747441103435,3.98416944,2510.0,2509.6,18.0296]
[1747441103595,3.98389288,2510.2,2509.6,22.0142051]
[1747441103932,10.554,2510.3,2509.7,3.98453998]
[1747441104248,3.98396106,2510.1,2509.6,32.77129669]
[1747441104445,14.53763961,2510.3,2509.6,28.7866]
[1747441104609,10.554,2510.3,2509.8,3.98437406]
[1747441104954,10.526,2510.8,2509.9,3.98419289]
[1747441105132,0.8296,2511.5,2510.1,0.55]
[1747441105428,10.531,2511.8,2511.4,3.98183883]
[1747441105630,10.531,2511.8,2511.5,3.98167057]
[1747441105833,10.531,2511.8,2511.7,3.9813672]
[1747441106034,10.531,2511.8,2511.4,3.98170963]
[1747441106332,10.531,2511.8,2511.3,10.758]
[1747441106658,3.98187026,2511.4,2510.8,18.0346]
[1747441106834,3.98176284,2511.5,2510.9,3.98262603]
[1747441107010,0.8296,2511.7,2510.8,17.196]
[1747441107209,3.98242783,2511.1,2510.8,17.196]
[1747441107411,14.50142783,2511.1,2510.8,17.196]
[1747441107632,10.519,2511.1,2510.8,17.196]
[1747441108005,4.81100802,2511.7,2511.1,3.98222031]
[1747441108211,0.8296,2512.1,2511.3,0.8386]
[1747441108435,3.98076319,2512.1,2511.5,3.98158253]
[1747441109023,3.98080059,2512.1,2511.3,4.8205669]
[1747441109433,3.9809207,2512.0,2511.4,3.98174402]
[1747441109729,0.8296,2511.9,2510.9,11.5966]
[1747441109901,3.98161252,2511.6,2511.0,3.98245374]
[1747441110100,10.518,2511.5,2511.0,3.98245374]
[1747441110510,14.499719,2511.5,2510.9,15.57918111]
[1747441110743,3.98184279,2511.4,2510.9,0.8386]
[1747441110928,3.98217312,2511.2,2510.9,0.8386]
[1747441111248,3.98258251,2511.0,2510.8,17.196]
[1747441111946,14.50077918,2510.9,2510.2,10.758]
[1747441112241,3.98279432,2510.8,2510.2,14.74174399]
[1747441112438,0.8302,2511.2,2510.2,11.92782544]
[1747441112604,10.518,2511.3,2510.9,3.982493]
[1747441112806,14.49980094,2511.5,2510.9,3.982493]
[1747441113140,10.518,2511.5,2510.9,3.982493]
[1747441113344,10.518,2511.5,2511.0,3.98239453]
[1747441113510,10.518,2511.5,2511.1,3.98231332]
[1747441113709,10.518,2511.5,2511.0,3.98237267]
[1747441113910,10.518,2511.5,2510.8,0.8308]
[1747441114108,3.98187073,2511.4,2510.8,0.8308]
[1747441114310,3.98291943,2510.8,2510.6,10.758]
[1747441114529,3.98270875,2510.9,2510.6,10.758]
[1747441114730,3.98200109,2511.4,2510.6,10.758]
[1747441114938,3.98217442,2511.2,2510.6,14.74105855]
[1747441115148,10.518,2511.5,2510.6,14.74105855]
[1747441115149,3.98188685,2511.4,2510.6,14.74105855]
[1747441115327,14.49970071,2511.5,2510.7,3.98280958]
[1747441115517,0.7714,2511.9,2510.8,4.0226181]
[1747441115847,10.517,2511.9,2511.0,0.8047]
[1747441116049,4.74942129,2512.3,2511.6,3.98143545]
[1747441116250,10.517,2512.2,2511.2,3.98215992]
[1747441116423,10.517,2512.2,2511.5,4.7862613]
[1747441116747,10.517,2512.9,2511.3,10.517]
[1747441116748,10.517,2512.9,2512.0,3.98089171]
[1747441117045,10.517,2512.9,2512.5,3.9800733]
[1747441117244,3.97862655,2513.5,2512.8,3.97952145]
[1747441117445,11.286,2513.6,2512.7,0.8047]
[1747441117646,11.286,2513.6,2512.8,10.517]
[1747441117647,3.97878535,2513.4,2512.8,10.517]
[1747441117850,3.97878535,2513.4,2512.7,0.8047]
[1747441117851,11.286,2513.6,2512.7,0.8047]
[1747441118153,3.97917156,2513.1,2512.7,11.3217]
[1747441118444,3.97931344,2513.0,2512.7,11.3217]
[1747441119152,10.516,2512.9,2512.0,0.8047]
[1747441119445,10.516,2512.9,2510.2,5.15349864]
[1747441119446,3.9797827,2512.7,2511.6,0.8047]
[1747441119649,3.98095465,2512.0,2511.6,0.8047]
[1747441119864,3.98042448,2512.3,2511.7,3.98126265]
[1747441120212,3.9800995,2512.5,2511.8,3.98119406]
[1747441120213,3.98011921,2512.5,2511.8,3.98119406]
[1747441120412,3.98011921,2512.5,2511.7,3.98136278]
[1747441120413,3.98051996,2512.3,2511.9,10.515]
[1747441120655,3.98059466,2512.2,2511.9,10.515]
[1747441120854,3.9805009,2512.3,2511.9,10.515]
[1747441121647,3.97994109,2512.6,2511.0,17.9983]
[1747441121855,3.98119716,2511.9,2511.2,14.49707115]
[1747441122056,3.98133207,2511.8,2511.3,10.515]
[1747441122219,3.98110847,2511.9,2511.3,14.49698203]
[1747441122553,3.98066766,2512.2,2511.5,3.98158634]
[1747441123021,10.514,2512.4,2511.1,10.515]
[1747441123226,3.98201831,2511.3,2511.0,0.8033]
[1747441123418,3.98127918,2511.8,2510.5,10.515]
[1747441123419,3.98289343,2510.8,2510.5,10.515]
[1747441123616,3.98342893,2510.4,2508.3,0.8033]
[1747441123826,0.8469,2509.4,2507.8,0.8033]
[1747441124024,4.2408398,2509.6,2507.4,0.8033]
[1747441124025,8.0,2509.0,2507.4,0.8033]
[1747441124223,8.8469,2509.1,2507.6,2.14451652]
[1747441124430,0.8469,2509.1,2507.6,2.14451652]
[1747441124612,0.8469,2509.1,2507.9,3.98735482]
[1747441124934,0.29340144,2509.4,2508.7,3.98612518]
[1747441125137,10.524,2510.0,2508.8,2.38575837]
[1747441125342,10.524,2510.0,2509.1,0.7753]
[1747441125553,10.524,2510.0,2509.2,10.518]
[1747441125714,14.50819858,2510.0,2509.2,10.518]
[1747441125914,10.524,2510.0,2508.6,0.7753]
[1747441126134,10.524,2510.0,2508.6,11.2933]
[1747441126341,3.98421475,2510.0,2508.7,1.12933]
[1747441126547,3.98361265,2510.3,2509.2,0.7753]
[1747441126751,3.98361265,2510.3,2509.3,31.6990649]
[1747441126926,3.98494638,2509.5,2509.3,17.196]
[1747441127115,3.98342893,2510.4,2509.0,10.518]
[1747441127116,3.98532997,2509.3,2509.0,10.518]
[1747441127322,10.561,2509.8,2508.8,11.2933]
[1747441127628,11.3617,2509.7,2508.5,10.518]
[1747441127961,10.583,2509.6,2508.5,10.518]
[1747441128142,14.59029145,2509.9,2508.5,14.50440767]
[1747441128346,3.98521612,2509.3,2508.6,1.52797077]
[1747441128533,3.98533788,2509.2,2508.6,1.52797077]
[1747441129341,10.606,2509.9,2508.7,17.2]
[1747441129556,3.98438122,2509.8,2509.0,4.76094716]
[1747441129853,10.606,2509.9,2509.1,10.52]
[1747441130028,3.9854928,2509.1,2509.0,0.7753]
[1747441130231,3.98575644,2509.0,2508.8,10.52]
[1747441130551,3.98577644,2509.0,2508.7,17.2]
[1747441130861,10.564,2509.3,2508.7,17.2]
[1747441131156,0.8379,2509.9,2508.7,17.2]
[1747441131451,0.8379,2509.9,2508.8,10.52]
[1747441131452,3.98537581,2509.2,2508.8,10.52]
[1747441131859,3.98514405,2509.4,2508.8,10.52]
[1747441132451,3.98512786,2509.4,2508.9,10.522]
[1747441132757,3.98496977,2509.5,2508.7,22.98566628]
[1747441132977,3.98475291,2509.6,2509.0,10.522]
[1747441133156,10.561,2509.8,2509.0,11.5742]
[1747441133377,0.798,2510.4,2509.1,0.86004691]
[1747441133543,14.52336636,2510.5,2509.9,0.8202]
[1747441133856,10.54,2510.5,2509.9,0.8202]
[1747441134044,10.54,2510.5,2510.0,10.522]
[1747441134251,3.98281262,2510.8,2510.0,13.37652]
[1747441134435,3.98268354,2510.9,2510.2,3.98363855]
[1747441134637,3.98265111,2510.9,2510.1,3.98387006]
[1747441134835,3.98344998,2510.4,2510.2,10.522]
[1747441135052,3.98336927,2510.5,2510.2,10.522]
[1747441136037,3.98308841,2510.7,2510.2,10.522]
[1747441136038,3.98313687,2510.6,2510.2,10.522]
[1747441136238,3.98267759,2510.9,2510.0,3.98398511]
[1747441136540,3.98303691,2510.7,2510.1,11.4008384]
[1747441136755,4.78008533,2511.3,2510.2,3.98374598]
[1747441136943,14.50315992,2511.2,2510.3,3.98348041]
[1747441137142,3.98274713,2510.9,2510.1,11.4008384]
[1747441137354,10.521,2511.2,2510.2,10.522]
[1747441137355,3.98346012,2510.4,2510.2,10.522]
[1747441137542,3.98315787,2510.6,2510.3,10.522]
[1747441137543,3.98327026,2510.5,2510.3,10.522]
[1747441137868,3.98327026,2510.5,2510.3,10.521]
[1747441137869,3.98342893,2510.4,2510.3,10.521]
[1747441138163,14.5032088,2511.2,2510.0,10.521]
[1747441138366,3.98391016,2510.1,2510.0,10.521]
[1747441138532,3.98345399,2510.4,2510.0,10.521]
[1747441138732,3.98371849,2510.3,2510.0,10.521]
[1747441138947,3.98349242,2510.4,2510.0,10.521]
[1747441139331,10.52,2510.6,2510.0,10.521]
[1747441139745,14.50322594,2510.6,2510.0,16.49044098]
[1747441140065,10.52,2510.6,2510.0,12.50639896]
[1747441140433,10.52,2510.6,2510.1,10.521]
[1747441140641,3.98385811,2510.2,2509.9,0.8202]
[1747441140855,3.98385811,2510.2,2510.0,10.52]
[1747441141062,14.7608398,2510.1,2508.5,0.8075]
[1747441141365,3.62710608,2509.4,2507.7,0.8075]
[1747441141568,3.98533397,2509.2,2507.7,0.8075]
[1747441141778,3.98635461,2508.6,2507.8,10.52]
[1747441141945,3.98601059,2508.8,2508.0,3.98714535]
[1747441142146,3.98591895,2508.9,2508.1,3.98705208]
[1747441142534,10.519,2509.0,2508.2,10.52]
[1747441142870,14.50480468,2509.0,2508.2,10.52]
[1747441143067,3.98649421,2508.5,2508.2,11.572]
[1747441143234,3.98633382,2508.6,2508.2,10.52]
[1747441143858,3.98581051,2508.9,2508.2,10.52]
[1747441144052,3.98537415,2509.2,2508.2,10.52]
[1747441144268,3.98537415,2509.2,2507.7,18.0075]
[1747441144269,3.98565165,2509.0,2507.7,18.0075]
[1747441144469,3.98660493,2508.5,2507.8,16.31026147]
[1747441144665,3.98631574,2508.6,2507.9,3.98735708]
[1747441144878,3.98631574,2508.6,2507.8,16.31026557]
[1747441145085,1.98748594,2510.9,2507.8,16.31026557]
[1747441145086,14.33265706,2510.0,2507.8,1.80075]
[1747441145245,14.33265706,2510.0,2507.5,20.64186516]
[1747441145246,4.82387685,2507.6,2507.5,20.64186516]
[1747441145446,15.60487685,2507.6,2507.5,20.64186516]
[1747441146085,12.82387685,2507.6,2507.5,18.93566516]
[1747441146269,34.43787685,2507.6,2507.5,18.93566516]
[1747441146479,37.36287685,2507.6,2507.5,18.93566516]
[1747441146783,36.81387685,2507.6,2507.5,18.93566516]
[1747441147188,36.82144831,2507.6,2507.5,14.85215411]
[1747441147363,47.34839931,2507.6,2507.5,2.87822114]
[1747441147686,24.72472312,2507.6,2507.5,2.09398751]
[1747441148008,35.58683512,2507.6,2507.5,1.77859377]
[1747441148286,43.16985037,2507.6,2507.5,1.77859377]
[1747441148487,39.26110537,2507.6,2507.5,1.77859377]
[1747441148649,47.13190537,2507.6,2507.5,1.77859377]
[1747441148843,45.09724568,2507.6,2507.5,1.77859377]
[1747441149049,18.12447968,2507.6,2507.5,1.77859377]
[1747441149581,39.82247968,2507.6,2507.5,1.77859377]
[1747441149884,39.28710537,2507.6,2507.5,1.77859377]
[1747441150389,38.72610537,2507.6,2507.5,1.77859377]
[1747441150682,17.03410537,2507.6,2507.5,1.77859377]
[1747441150846,38.72110537,2507.6,2507.5,1.77859377]
[1747441151049,12.78144831,2507.6,2507.5,1.77859377]
[1747441151249,15.37987685,2507.6,2507.5,1.77859377]
[1747441151446,10.3120332,2507.6,2507.5,0.06162371]
[1747441151756,13.62614102,2507.6,2507.5,0.06162371]
[1747441152454,21.62614102,2507.6,2507.5,0.06162371]
[1747441152661,13.62614102,2507.6,2507.5,0.06162371]
[1747441152893,32.96114102,2507.6,2507.5,0.06162371]
[1747441153113,32.41114102,2507.6,2507.5,0.06162371]
[1747441153271,32.41114102,2507.6,2506.9,1.76985371]
[1747441153272,3.98883127,2507.0,2506.9,1.76985371]
[1747441153473,14.97383127,2507.0,2506.9,1.76985371]
[1747441153995,0.29370595,2507.9,2506.9,1.76985371]
[1747441154182,3.93883127,2507.0,2506.9,1.76985371]
[1747441154899,3.93883127,2507.0,2506.4,0.8496]
[1747441154900,21.76470892,2507.0,2505.1,2.71884068]
[1747441155106,3.99027877,2506.1,2505.1,2.71884068]
[1747441155267,3.99081518,2505.8,2505.1,2.99072475]
[1747441155601,3.99119581,2505.6,2505.1,2.71884068]
[1747441155912,3.99080088,2505.8,2505.2,3.99160348]
[1747441156214,3.99080088,2505.8,2505.1,2.71884068]
[1747441156215,3.99080088,2505.8,2505.3,11.118]
[1747441156363,11.128,2506.0,2505.4,0.8115]
[1747441156565,3.98864937,2505.7,2505.4,0.8115]
[1747441156900,3.99074147,2505.8,2505.4,0.8115]
[1747441157462,11.128,2506.0,2505.4,0.8115]
[1747441157658,3.99058222,2505.9,2505.1,13.83684068]
[1747441157866,3.99133055,2505.5,2505.1,2.71884068]
[1747441158063,15.11844904,2506.0,2505.1,2.71884068]
[1747441158064,3.99105892,2505.7,2505.1,2.71884068]
[1747441158298,3.99099766,2505.7,2505.1,4.58286659]
[1747441158461,3.99153793,2505.3,2505.1,2.71884068]
[1747441158664,3.99169726,2505.2,2505.1,2.71884068]
[1747441159196,3.99106846,2505.6,2505.1,2.71884068]
[1747441159499,11.122,2505.7,2505.1,2.71884068]
[1747441159500,3.99026375,2506.1,2505.1,2.71884068]
[1747441159822,3.98974513,2506.5,2505.1,2.75875954]
[1747441159968,3.99006417,2506.3,2505.7,3.99074886]
[1747441160167,3.99003906,2506.3,2505.8,11.121]
[1747441160468,3.99016499,2506.2,2505.8,11.121]
[1747441160669,11.097,2506.4,2505.8,11.121]
[1747441160999,11.074,2506.7,2505.8,18.41725]
[1747441161168,11.077,2506.8,2506.1,3.99026375]
[1747441161364,11.077,2506.8,2506.1,3.99018211]
[1747441161617,11.077,2506.8,2506.3,3.98992216]
[1747441161918,3.98847929,2507.3,2506.1,0.807]
[1747441162066,3.9887049,2507.1,2506.4,3.98964664]
[1747441162265,0.29593146,2507.5,2506.4,0.39896466]
[1747441162512,3.99117392,2505.6,2504.9,0.807]
[1747441162806,3.99169726,2505.2,2504.9,0.807]
[1747441163167,3.99169726,2505.2,2504.8,21.55991736]
[1747441163716,3.99154236,2505.3,2504.8,21.55991736]
[1747441163717,3.99156795,2505.3,2504.8,21.55991736]
[1747441163917,3.98987978,2506.4,2504.8,21.55991736]
[1747441163918,3.99110754,2505.6,2505.2,0.807]
[1747441164116,3.99147865,2505.4,2505.2,0.807]
[1747441164280,3.99153793,2505.3,2505.2,0.807]
[1747441164601,3.99074147,2505.8,2505.2,0.807]
[1747441164602,11.529,2505.8,2505.2,0.807]
[1747441164908,3.99117172,2505.6,2505.2,1.15958407]
[1747441165111,3.99095499,2505.7,2505.2,1.15958407]
[1747441165318,3.99080065,2505.8,2505.2,1.15958407]
[1747441165816,3.99080065,2505.8,2505.2,5.15123727]
[1747441166116,3.99048411,2506.0,2505.4,3.99137192]
[1747441166266,3.99048411,2506.0,2505.5,11.511]
[1747441166466,11.477,2506.5,2505.6,0.7844]